bitfinex/quotes_BTCUSD_20250408
["timestamp","ask_amount","ask_price","bid_price","bid_amount"]
[1744119039452,8.4e-07,80361.0,80360.0,0.55212349]
[1744119039656,8.4e-07,80361.0,80360.0,0.70408349]
[1744119040721,8.4e-07,80361.0,80360.0,0.70952349]
[1744119041541,8.4e-07,80361.0,80360.0,0.40628]
[1744119041753,8.4e-07,80361.0,80360.0,0.427724]
[1744119041957,8.4e-07,80361.0,80360.0,0.56298264]
[1744119042164,8.4e-07,80361.0,80360.0,0.55398264]
[1744119042369,8.4e-07,80361.0,80360.0,0.54498264]
[1744119042574,8.4e-07,80361.0,80360.0,0.55198264]
[1744119042781,0.248875,80362.0,80360.0,0.016]
[1744119042993,0.248848,80371.0,80356.0,0.012444]
[1744119043204,0.0020002,80379.0,80372.0,0.012442]
[1744119043414,0.248827,80377.0,80372.0,0.38754164]
[1744119043661,0.248836,80375.0,80372.0,0.12625864]
[1744119043897,0.248839,80373.0,80361.0,0.012443]
[1744119044148,0.24886,80367.0,80362.0,0.15736]
[1744119044416,0.012442,80372.0,80360.0,0.018444]
[1744119044417,0.248871,80363.0,80360.0,0.006]
[1744119044653,0.248875,80362.0,80360.0,0.006]
[1744119044921,0.012445,80349.0,80337.0,0.15732]
[1744119045166,0.248912,80350.0,80339.0,0.261389]
[1744119045418,0.248912,80350.0,80331.0,0.261415]
[1744119045419,0.248949,80338.0,80332.0,0.248965]
[1744119045644,0.248946,80339.0,80334.0,0.248958]
[1744119045880,0.012447,80335.0,80333.0,0.00041633]
[1744119046146,0.261408,80334.0,80333.0,0.00041633]
[1744119046627,0.24896,80334.0,80333.0,0.00041633]
[1744119046880,0.012447,80340.0,80333.0,0.00041633]
[1744119046881,0.012444,80358.0,80347.0,0.24892]
[1744119047130,0.34,80359.0,80357.0,0.248888]
[1744119047404,0.34,80359.0,80338.0,0.00248898]
[1744119047405,0.34,80359.0,80348.0,0.248917]
[1744119047626,0.2489,80354.0,80348.0,0.012445]
[1744119047857,0.012446,80342.0,80334.0,0.30732]
[1744119048087,0.248957,80336.0,80334.0,0.003]
[1744119048610,0.248957,80336.0,80333.0,0.00241633]
[1744119048611,0.261408,80334.0,80333.0,0.00041633]
[1744119048841,0.248958,80335.0,80333.0,0.00041633]
[1744119049073,0.001,80334.0,80333.0,0.00041633]
[1744119049317,0.013448,80334.0,80333.0,0.00041633]
[1744119050058,0.248958,80335.0,80333.0,0.00041633]
[1744119050293,0.012446,80344.0,80333.0,0.00241633]
[1744119050534,0.248958,80335.0,80333.0,0.00241633]
[1744119050771,0.012448,80334.0,80333.0,0.00241633]
[1744119052011,0.24894,80341.0,80336.0,0.012447]
[1744119052256,0.248942,80340.0,80335.0,0.261402]
[1744119052555,0.24894,80341.0,80335.0,0.248955]
[1744119052797,0.248944,80340.0,80335.0,0.248955]
[1744119053056,0.248952,80337.0,80334.0,0.24896]
[1744119053270,0.248943,80340.0,80337.0,0.248949]
[1744119053508,0.01946215,80339.0,80336.0,0.248952]
[1744119053756,0.248957,80336.0,80335.0,0.004]
[1744119054241,0.261404,80336.0,80335.0,0.004]
[1744119054472,0.261408,80334.0,80333.0,0.00041633]
[1744119054733,0.012445,80349.0,80335.0,0.014447]
[1744119054988,0.248936,80342.0,80338.0,0.248945]
[1744119055195,0.012448,80334.0,80333.0,0.00041633]
[1744119055411,0.261408,80334.0,80333.0,0.00041633]
[1744119055623,0.77706664,80334.0,80333.0,3.3e-07]
[1744119055840,0.77706664,80334.0,80310.0,0.01155591]
[1744119055841,0.261482,80311.0,80310.0,0.01155591]
[1744119056052,0.72774064,80311.0,80310.0,0.01155591]
[1744119056285,0.72774064,80311.0,80310.0,9.1e-07]
[1744119056499,0.77524064,80311.0,80310.0,9.1e-07]
[1744119056716,0.249088,80293.0,80287.0,0.012455]
[1744119056953,0.352452,80306.0,80299.0,0.25824241]
[1744119057164,0.012453,80298.0,80290.0,0.261548]
[1744119057378,0.012453,80297.0,80289.0,0.249099]
[1744119057590,0.249089,80293.0,80291.0,0.01537057]
[1744119057802,0.249063,80301.0,80293.0,0.249087]
[1744119058016,0.65064991,80310.0,80292.0,0.24909]
[1744119058017,0.34,80302.0,80296.0,0.012453]
[1744119058234,0.249084,80294.0,80293.0,0.00012479]
[1744119058440,0.261538,80294.0,80293.0,0.00012479]
[1744119059082,0.249084,80294.0,80293.0,0.00012479]
[1744119059297,0.012452,80307.0,80293.0,0.01257879]
[1744119059517,0.012451,80309.0,80301.0,0.249061]
[1744119059742,0.249083,80295.0,80293.0,0.00612479]
[1744119059957,0.012454,80294.0,80293.0,0.00612479]
[1744119060204,0.012454,80294.0,80293.0,0.01412479]
[1744119060421,0.47871264,80294.0,80293.0,0.00012479]
[1744119061075,0.352454,80292.0,80261.0,0.1634]
[1744119061298,0.261642,80262.0,80261.0,0.006]
[1744119061571,0.38790064,80262.0,80261.0,0.006]
[1744119061808,0.72790064,80262.0,80261.0,0.00612487]
[1744119062050,0.72790064,80262.0,80260.0,0.0003362]
[1744119062051,0.352459,80261.0,80260.0,7e-08]
[1744119062299,0.012464,80230.0,80229.0,4.6e-07]
[1744119062538,0.012464,80230.0,80212.0,0.000336]
[1744119062539,0.601802,80213.0,80212.0,1e-06]
[1744119062775,0.72806064,80213.0,80212.0,1e-06]
[1744119063013,0.72806064,80213.0,80212.0,0.00041748]
[1744119063507,0.601838,80202.0,80193.0,0.00249368]
[1744119063754,0.012467,80207.0,80201.0,0.00412492]
[1744119063998,0.012468,80202.0,80201.0,0.00412492]
[1744119064477,0.352468,80202.0,80201.0,0.00412492]
[1744119064733,0.34,80202.0,80201.0,0.00412492]
[1744119064976,0.352468,80202.0,80201.0,0.00412492]
[1744119065470,0.47872664,80202.0,80201.0,9.2e-07]
[1744119065709,0.601847,80199.0,80198.0,1.2e-07]
[1744119065947,0.601847,80199.0,80198.0,0.00012509]
[1744119067117,0.602847,80199.0,80198.0,0.00012509]
[1744119067369,0.72910564,80199.0,80198.0,0.00012509]
[1744119067593,0.82526776,80199.0,80198.0,0.00100009]
[1744119067844,0.74364649,80199.0,80198.0,9e-08]
[1744119068307,0.74364649,80199.0,80175.0,0.0003368]
[1744119068308,0.34,80176.0,80175.0,0.0003368]
[1744119068560,0.34,80176.0,80171.0,4.238e-05]
[1744119068561,0.261936,80172.0,80171.0,4.238e-05]
[1744119068787,0.38819464,80172.0,80171.0,0.00016738]
[1744119069019,0.601945,80169.0,80168.0,1.8e-07]
[1744119069289,0.72820364,80169.0,80168.0,1.8e-07]
[1744119069523,0.74274449,80169.0,80168.0,1.8e-07]
[1744119070406,0.36701385,80168.0,80167.0,8e-07]
[1744119070657,0.601988,80156.0,80155.0,6e-07]
[1744119070893,0.76203679,80156.0,80155.0,0.00012556]
[1744119071370,0.74278749,80156.0,80155.0,5.6e-07]
[1744119071613,0.61654585,80151.0,80150.0,5.6e-07]
[1744119071905,0.602034,80142.0,80141.0,5.6e-07]
[1744119072139,0.249583,80134.0,80119.0,0.000337]
[1744119072401,0.35248,80128.0,80127.0,0.00075334]
[1744119072622,0.47873864,80128.0,80127.0,0.00075334]
[1744119072867,0.51252879,80128.0,80127.0,0.00075334]
[1744119073105,0.602103,80121.0,80119.0,0.000337]
[1744119073328,0.34,80118.0,80117.0,0.0003366]
[1744119073552,0.602145,80108.0,80107.0,0.000337]
[1744119073786,0.74294449,80108.0,80107.0,0.00042207]
[1744119074029,0.46625864,80108.0,80107.0,0.01290507]
[1744119074268,0.46625864,80108.0,80107.0,0.00021661]
[1744119074733,0.65064991,80130.0,80127.0,0.249603]
[1744119074982,0.65064991,80130.0,80120.0,0.012481]
[1744119074983,0.46625864,80129.0,80120.0,0.001]
[1744119075452,0.34,80122.0,80120.0,0.001]
[1744119075719,0.34,80136.0,80122.0,0.01248]
[1744119075944,0.37583664,80135.0,80120.0,0.2631]
[1744119076161,0.01248,80126.0,80120.0,0.001]
[1744119076380,0.012482,80114.0,80100.0,0.012484]
[1744119076596,0.352482,80109.0,80107.0,0.00221661]
[1744119076806,0.47874064,80109.0,80107.0,0.00221661]
[1744119077040,0.47874064,80109.0,80107.0,0.00021661]
[1744119077886,0.47874064,80109.0,80108.0,0.0033368]
[1744119078557,0.49328149,80109.0,80108.0,0.0033368]
[1744119078770,0.602194,80093.0,80070.0,0.012489]
[1744119078984,0.74299349,80093.0,80092.0,0.03012496]
[1744119079421,0.47874364,80093.0,80092.0,0.03012496]
[1744119080093,0.34,80093.0,80092.0,0.03012496]
[1744119080315,0.34,80093.0,80092.0,0.03412496]
[1744119080524,0.34,80093.0,80092.0,0.03612496]
[1744119080738,0.47874364,80093.0,80092.0,0.03612496]
[1744119081834,0.602231,80082.0,80081.0,1e-06]
[1744119082044,0.74303049,80082.0,80081.0,1e-06]
[1744119082253,0.72848964,80082.0,80081.0,1e-06]
[1744119082461,0.74303049,80082.0,80081.0,1e-06]
[1744119082910,0.72848964,80082.0,80081.0,1e-06]
[1744119083134,0.05,80099.0,80081.0,1e-06]
[1744119083350,0.249723,80089.0,80085.0,0.012486]
[1744119083611,0.249744,80082.0,80081.0,1e-06]
[1744119083816,0.39148964,80082.0,80081.0,1e-06]
[1744119084264,0.40048964,80082.0,80081.0,0.001001]
[1744119084482,0.39748964,80082.0,80081.0,0.001001]
[1744119085069,0.021487,80082.0,80081.0,0.001001]
[1744119085267,0.009,80082.0,80081.0,0.001001]
[1744119086009,0.249743,80083.0,80081.0,1e-06]
[1744119086010,0.249741,80083.0,80081.0,1e-06]
[1744119086227,0.249741,80083.0,80050.0,0.66519076]
[1744119086228,0.249798,80065.0,80059.0,0.01249]
[1744119086429,0.34,80081.0,80073.0,0.012488]
[1744119086572,0.249779,80071.0,80070.0,0.16324]
[1744119086775,0.262267,80071.0,80070.0,0.16324]
[1744119087332,0.262276,80068.0,80067.0,0.00012515]
[1744119087537,0.72853464,80068.0,80067.0,0.00012515]
[1744119087754,0.72853464,80068.0,80067.0,1.5e-07]
[1744119089318,0.602361,80042.0,80041.0,8e-05]
[1744119089524,0.72861964,80042.0,80041.0,8e-05]
[1744119089726,0.602384,80035.0,80034.0,0.0003368]
[1744119089934,0.72864264,80035.0,80034.0,0.0003368]
[1744119090447,0.75463118,80035.0,80034.0,0.0003368]
[1744119090661,0.75463118,80035.0,80009.0,0.24997]
[1744119090662,0.60241,80027.0,80009.0,0.24997]
[1744119090874,0.72866864,80027.0,80008.0,0.249973]
[1744119091089,0.72866864,80027.0,80026.0,0.00075449]
[1744119092408,0.75162455,80027.0,80026.0,0.00075449]
[1744119093711,0.61696785,80022.0,80021.0,4.9e-07]
[1744119093928,0.61698385,80017.0,80016.0,8.6e-07]
[1744119094138,0.74324249,80017.0,80016.0,8.6e-07]
[1744119094357,0.60246,80012.0,80011.0,1e-06]
[1744119094577,0.74325949,80012.0,80011.0,1e-06]
[1744119094791,0.02295591,80017.0,80011.0,0.249966]
[1744119095016,0.012498,80012.0,80011.0,1e-06]
[1744119095230,0.012497,80015.0,80011.0,0.168761]
[1744119095231,0.34,80015.0,80011.0,0.168761]
[1744119095463,0.34,80015.0,80014.0,0.262453]
[1744119095678,0.34,80015.0,80011.0,1e-06]
[1744119095679,0.26246,80012.0,80011.0,1e-06]
[1744119095891,0.72871864,80012.0,80011.0,1e-06]
[1744119096333,0.72871864,80012.0,80011.0,0.001001]
[1744119096542,0.72871864,80012.0,79991.0,0.004]
[1744119096543,0.602495,80001.0,79991.0,0.004]
[1744119096754,0.602495,80001.0,80000.0,0.00046227]
[1744119096755,0.72875364,80001.0,80000.0,0.00046227]
[1744119097429,0.72875364,80001.0,80000.0,2.7e-07]
[1744119097670,0.72875364,80001.0,79978.0,0.0003368]
[1744119097671,0.012503,79979.0,79978.0,8e-07]
[1744119097902,0.74336749,79979.0,79978.0,0.00012612]
[1744119098134,0.81700629,79979.0,79978.0,1.2e-07]
[1744119098838,0.81200629,79979.0,79978.0,1.2e-07]
[1744119099083,0.79746544,79979.0,79978.0,1.2e-07]
[1744119099331,0.71632364,79979.0,79978.0,1.2e-07]
[1744119099583,0.73582664,79979.0,79978.0,1.2e-07]
[1744119099813,0.48676164,79979.0,79978.0,0.00200012]
[1744119100308,0.48576164,79979.0,79978.0,1.2e-07]
[1744119100789,0.62655794,79979.0,79978.0,1.2e-07]
[1744119100996,0.50830249,79979.0,79978.0,1.2e-07]
[1744119101433,0.47876164,79979.0,79978.0,1.2e-07]
[1744119101641,0.012501,79990.0,79978.0,0.18138312]
[1744119101853,0.012501,79990.0,79978.0,0.16988012]
[1744119101854,0.006,79979.0,79978.0,0.16988012]
[1744119102063,0.38882664,79979.0,79978.0,0.16888012]
[1744119102287,0.38882664,79979.0,79978.0,1.2e-07]
[1744119102501,0.39582664,79979.0,79978.0,1.2e-07]
[1744119102916,0.38882664,79979.0,79978.0,1.2e-07]
[1744119103161,0.39182664,79979.0,79978.0,1.2e-07]
[1744119103371,0.01,79979.0,79978.0,0.01250312]
[1744119103803,0.003,79979.0,79978.0,0.01500339]
[1744119104035,0.65064991,80020.0,80009.0,0.012498]
[1744119104036,0.012497,80016.0,80009.0,0.012498]
[1744119104251,0.262463,80011.0,80010.0,0.16892]
[1744119104473,0.65064991,80030.0,80003.0,0.99028]
[1744119104474,0.299096,80034.0,80029.0,0.012495]
[1744119104716,0.12625864,80034.0,80030.0,0.181415]
[1744119104928,0.012494,80034.0,80030.0,0.16892]
[1744119105144,0.012495,80031.0,80030.0,0.16892]
[1744119105361,0.004,80049.0,80040.0,0.012493]
[1744119105586,0.004,80049.0,80047.0,0.24985]
[1744119105812,0.262361,80042.0,80041.0,0.99032]
[1744119106043,0.38861964,80042.0,80041.0,0.17436]
[1744119106248,0.26243,80021.0,80020.0,0.99032]
[1744119106475,0.262423,80024.0,80020.0,1.16468]
[1744119106742,0.012495,80030.0,80021.0,0.26243]
[1744119106743,0.34,80023.0,80021.0,0.26243]
[1744119106950,0.262392,80033.0,80026.0,0.012495]
[1744119107174,0.013494,80034.0,80029.0,0.249906]
[1744119107388,0.249905,80031.0,80025.0,0.24992]
[1744119107599,0.012494,80033.0,80022.0,0.012496]
[1744119107600,0.249896,80033.0,80022.0,0.012496]
[1744119107853,0.00012442,80031.0,80030.0,0.249906]
[1744119108064,0.00012442,80031.0,80030.0,0.262401]
[1744119108486,0.00012442,80031.0,80030.0,0.38865964]
[1744119109596,0.00112442,80031.0,80030.0,0.009]
[1744119109846,0.00112442,80031.0,80030.0,0.195815]
[1744119111019,0.00112442,80031.0,80030.0,0.19831374]
[1744119111258,0.00112442,80031.0,80030.0,0.195815]
[1744119111488,0.00012442,80031.0,80030.0,0.186815]
[1744119111732,0.00112442,80031.0,80030.0,0.01049853]
[1744119111975,0.00112442,80031.0,80009.0,0.17432]
[1744119111976,0.012497,80016.0,80009.0,0.17432]
[1744119112235,0.24997,80010.0,80004.0,0.012499]
[1744119112484,0.352497,80014.0,79997.0,0.17432]
[1744119112485,0.250006,79998.0,79997.0,0.17432]
[1744119112707,0.262506,79998.0,79997.0,0.17432]
[1744119112926,0.0125,79998.0,79997.0,0.17432]
[1744119113151,0.0125,79998.0,79994.0,0.99012]
[1744119113152,0.0125,79995.0,79994.0,0.99012]
[1744119113387,0.012499,80003.0,79994.0,1.00262]
[1744119113629,0.0125,79995.0,79994.0,0.99012]
[1744119114096,0.602518,79994.0,79993.0,1e-06]
[1744119114506,0.72877664,79994.0,79993.0,1e-06]
[1744119114508,0.34,79994.0,79993.0,0.012502]
[1744119114706,0.3525,79994.0,79993.0,1e-06]
[1744119114906,0.13875864,79994.0,79993.0,1e-06]
[1744119115271,0.47875864,79994.0,79993.0,1e-06]
[1744119115730,0.48075864,79994.0,79993.0,1e-06]
[1744119115950,0.49529949,79994.0,79993.0,1e-06]
[1744119116169,0.62155494,79994.0,79993.0,1e-06]
[1744119116401,0.49529949,79994.0,79993.0,1e-06]
[1744119116643,0.602623,79962.0,79961.0,0.004]
[1744119116863,0.72888164,79962.0,79961.0,0.004]
[1744119117999,0.7666053,79962.0,79961.0,0.004]
[1744119118206,0.75206445,79962.0,79961.0,0.004]
[1744119118430,0.75206445,79962.0,79961.0,1e-06]
[1744119118636,0.74742249,79962.0,79961.0,1e-06]
[1744119119094,0.74342249,79962.0,79961.0,1e-06]
[1744119119318,0.74342249,79962.0,79961.0,0.001001]
[1744119119319,0.75042249,79962.0,79961.0,0.001001]
[1744119120004,0.75042249,79962.0,79961.0,1e-06]
[1744119120245,0.73588164,79962.0,79961.0,1e-06]
[1744119120495,0.48225864,79962.0,79961.0,1e-06]
[1744119120702,0.14225864,79962.0,79961.0,0.262628]
[1744119120908,0.028505,79962.0,79961.0,1e-06]
[1744119121115,0.016,79962.0,79961.0,1e-06]
[1744119121321,0.028505,79962.0,79961.0,1e-06]
[1744119121528,0.48576364,79962.0,79961.0,1e-06]
[1744119121733,0.48576364,79962.0,79947.0,0.1747372]
[1744119121734,0.012506,79956.0,79947.0,0.1747372]
[1744119121942,0.005,79962.0,79961.0,0.012506]
[1744119122187,0.012499,80001.0,79995.0,0.0125]
[1744119122393,0.250091,79971.0,79965.0,0.012505]
[1744119122601,0.012503,79979.0,79973.0,0.012504]
[1744119122812,0.12625864,79978.0,79966.0,0.1744]
[1744119123015,0.012501,79989.0,79967.0,0.00250078]
[1744119123220,0.0001243,79991.0,79987.0,0.25004]
[1744119123422,0.65064991,80020.0,79968.0,0.00250054]
[1744119123423,0.012498,80007.0,79997.0,0.262509]
[1744119123602,0.13875764,80006.0,79994.0,0.1744]
[1744119123859,0.0001253,80031.0,80029.0,0.249908]
[1744119124093,0.2625233,80031.0,80030.0,0.1744]
[1744119124308,0.004,80049.0,80041.0,0.012493]
[1744119124525,0.249856,80046.0,80038.0,0.262374]
[1744119124741,0.012493,80040.0,80031.0,0.262398]
[1744119124974,0.249862,80044.0,80039.0,0.249878]
[1744119125187,0.012492,80046.0,80037.0,0.262376]
[1744119125398,0.00012532,80040.0,80039.0,0.262371]
[1744119125836,0.00012532,80040.0,80039.0,0.38862964]
[1744119126283,0.0126575,80067.0,80039.0,0.38862964]
[1744119126284,0.0001685,80067.0,80066.0,0.249793]
[1744119126493,0.0001685,80067.0,80066.0,1.177209]
[1744119126708,0.00058599,80067.0,80066.0,1.177209]
[1744119126915,0.25037599,80067.0,80066.0,1.16472]
[1744119127138,0.00058599,80067.0,80066.0,1.55326064]
[1744119127561,0.0041688,80079.0,80078.0,0.262243]
[1744119127778,0.0041688,80079.0,80076.0,0.262248]
[1744119127984,0.004294,80079.0,80078.0,0.38850164]
[1744119128189,0.249627,80120.0,80107.0,0.262146]
[1744119128401,0.249577,80136.0,80108.0,1.18517925]
[1744119128627,0.00412515,80109.0,80108.0,1.30894164]
[1744119129064,0.26626615,80109.0,80108.0,1.1702]
[1744119129486,0.26222,80085.0,80084.0,0.99]
[1744119129772,0.34,80105.0,80096.0,0.012485]
[1744119129948,0.26222,80085.0,80084.0,1.1698]
[1744119130184,0.012485,80095.0,80084.0,1.1698]
[1744119130389,0.249687,80100.0,80088.0,0.012486]
[1744119130599,0.007,80109.0,80100.0,0.012484]
[1744119130806,0.34,80105.0,80097.0,0.012484]
[1744119131013,0.34,80105.0,80100.0,0.262168]
[1744119131223,0.34,80105.0,80100.0,0.012484]
[1744119131435,0.249733,80086.0,80047.0,0.05]
[1744119131645,0.352486,80085.0,80084.0,1.18392515]
[1744119131856,0.49328549,80085.0,80084.0,1.5e-07]
[1744119132060,0.49328549,80085.0,80062.0,0.17972]
[1744119132061,0.01249,80064.0,80062.0,0.17972]
[1744119132285,0.249775,80072.0,80061.0,0.249809]
[1744119132488,0.262293,80063.0,80062.0,0.0001252]
[1744119132700,0.262293,80063.0,80062.0,0.1798452]
[1744119133117,0.602293,80063.0,80062.0,0.1798452]
[1744119133351,0.34,80063.0,80062.0,0.1798452]
[1744119133600,0.602293,80063.0,80062.0,0.0001252]
[1744119133833,0.34,80063.0,80062.0,0.0126152]
[1744119134065,0.012484,80102.0,80089.0,0.012486]
[1744119134324,0.24971,80093.0,80090.0,0.17972]
[1744119134526,0.589715,80091.0,80090.0,0.17972]
[1744119134736,0.34,80091.0,80090.0,0.17972]
[1744119134948,0.0001688,80118.0,80114.0,0.012482]
[1744119135161,0.0001688,80118.0,80114.0,1.4339421]
[1744119135379,0.0001688,80118.0,80114.0,1.37798464]
[1744119135587,0.0001688,80118.0,80114.0,1.89770464]
[1744119135824,0.0001688,80118.0,80117.0,0.262115]
[1744119136079,0.0001688,80144.0,80138.0,0.262047]
[1744119136315,0.0001688,80144.0,80143.0,0.26203]
[1744119136542,0.0001688,80144.0,80143.0,0.56800864]
[1744119137000,0.00029393,80144.0,80143.0,0.56800864]
[1744119137235,0.00029393,80144.0,80143.0,0.57740828]
[1744119137585,0.249544,80146.0,80143.0,0.17972]
[1744119137807,0.374274,80155.0,80126.0,0.01248]
[1744119137808,0.012477,80142.0,80126.0,0.01248]
[1744119138046,0.012479,80133.0,80127.0,0.17964]
[1744119138289,0.012482,80114.0,80093.0,0.15]
[1744119138543,0.012482,80114.0,80059.0,0.1456]
[1744119138544,0.012479,80129.0,80114.0,0.012482]
[1744119138763,0.34,80126.0,80125.0,0.262089]
[1744119138987,0.262086,80126.0,80125.0,0.17964]
[1744119139221,0.012481,80116.0,80111.0,0.17964]
[1744119139451,0.012481,80116.0,80081.0,0.054]
[1744119139452,0.012486,80087.0,80081.0,0.004]
[1744119139677,0.012484,80097.0,80089.0,0.24972]
[1744119139908,0.249666,80107.0,80095.0,0.012485]
[1744119140140,0.249718,80091.0,80085.0,0.249732]
[1744119140375,0.34,80106.0,80081.0,0.00412513]
[1744119140376,0.012486,80085.0,80081.0,0.00412513]
[1744119140830,0.262231,80082.0,80081.0,0.00412513]
[1744119141268,0.602231,80082.0,80081.0,0.00412513]
[1744119141499,0.72848964,80082.0,80081.0,0.00412513]
[1744119141737,0.74303049,80082.0,80081.0,0.00712513]
[1744119141971,0.74303049,80082.0,80059.0,0.28741659]
[1744119141972,0.602302,80060.0,80059.0,0.10777659]
[1744119142223,0.72856064,80060.0,80059.0,0.10790169]
[1744119142487,0.74310149,80060.0,80059.0,0.10790169]
[1744119142718,0.72856064,80060.0,80059.0,0.10790169]
[1744119142944,0.46625864,80060.0,80059.0,0.10790169]
[1744119143174,0.012488,80075.0,80069.0,0.262272]
[1744119143396,0.012488,80075.0,80059.0,0.28754169]
[1744119143397,0.34,80068.0,80064.0,0.262287]
[1744119143638,0.34,80068.0,80067.0,0.012489]
[1744119143872,0.012487,80080.0,80072.0,0.012488]
[1744119144128,0.012489,80068.0,80059.0,0.1807651]
[1744119144361,0.0534,80109.0,80059.0,0.1807651]
[1744119144362,0.13874764,80067.0,80060.0,0.17964]
[1744119144594,0.012489,80070.0,80064.0,0.2498]
[1744119144824,0.34,80076.0,80068.0,0.012489]
[1744119145123,0.34,80076.0,80065.0,0.012489]
[1744119145124,0.012486,80086.0,80074.0,0.012488]
[1744119145369,0.0484,80109.0,80089.0,0.012486]
[1744119145370,0.012485,80095.0,80089.0,0.012486]
[1744119145599,0.012485,80091.0,80090.0,0.17964]
[1744119145833,0.012481,80118.0,80110.0,0.249655]
[1744119146060,0.249589,80132.0,80114.0,0.262126]
[1744119146281,0.01151495,80147.0,80114.0,0.262126]
[1744119146516,0.01151495,80147.0,80114.0,0.38838464]
[1744119146517,0.262022,80146.0,80114.0,0.38838464]
[1744119146742,0.0126448,80150.0,80114.0,0.38838464]
[1744119146967,0.0126448,80150.0,80111.0,0.192122]
[1744119146968,0.012481,80116.0,80111.0,0.17964]
[1744119147198,0.249582,80134.0,80114.0,0.012482]
[1744119147431,0.249592,80131.0,80114.0,0.192122]
[1744119147658,0.0126507,80115.0,80114.0,0.17964]
[1744119148113,0.0126507,80115.0,80114.0,0.18064]
[1744119148344,0.0011687,80115.0,80114.0,0.18064]
[1744119148560,0.262132,80112.0,80111.0,0.002]
[1744119148828,0.262132,80112.0,80107.0,0.17964]
[1744119148829,0.262145,80108.0,80107.0,0.17964]
[1744119149080,0.72840364,80108.0,80107.0,0.17964]
[1744119149270,0.61669285,80106.0,80105.0,0.0001251]
[1744119149539,0.72841064,80106.0,80105.0,0.0001251]
[1744119149772,0.0071687,80115.0,80114.0,0.012482]
[1744119150003,0.0071687,80115.0,80114.0,0.17964]
[1744119150230,0.012482,80113.0,80107.0,0.249664]
[1744119150455,0.34,80111.0,80108.0,0.17964]
[1744119150678,0.0001687,80115.0,80109.0,0.012482]
[1744119150901,0.018482,80112.0,80108.0,0.17964]
[1744119151107,0.0001687,80115.0,80114.0,0.012482]
[1744119151317,0.0001687,80115.0,80114.0,0.39088064]
[1744119151527,0.0001687,80115.0,80114.0,0.38838464]
[1744119151739,0.004,80139.0,80138.0,0.262047]
[1744119151955,0.004,80139.0,80138.0,1.1688]
[1744119152852,0.004,80139.0,80138.0,1.181278]
[1744119153095,0.266044,80139.0,80138.0,1.1688]
[1744119153328,0.249634,80117.0,80116.0,0.989]
[1744119153561,0.249634,80117.0,80114.0,0.003]
[1744119153562,0.262123,80115.0,80114.0,0.003]
[1744119153806,0.262123,80115.0,80074.0,0.012488]
[1744119153807,0.012487,80081.0,80074.0,0.012488]
[1744119154041,0.012486,80087.0,80076.0,0.262247]
[1744119154042,0.262217,80087.0,80076.0,0.262247]
[1744119154277,0.012485,80096.0,80083.0,0.012487]
[1744119154496,0.34,80094.0,80084.0,0.012486]
[1744119154717,0.012486,80089.0,80080.0,0.012487]
[1744119154938,0.012486,80089.0,80077.0,0.0126121]
[1744119154939,0.262216,80087.0,80078.0,0.262242]
[1744119155198,0.012486,80089.0,80081.0,0.249745]
[1744119155199,0.249723,80089.0,80081.0,0.249745]
[1744119155413,0.249736,80085.0,80079.0,0.1796]
[1744119155641,0.012486,80084.0,80083.0,0.001]
[1744119155878,0.012486,80089.0,80079.0,0.012487]
[1744119156095,0.012486,80089.0,80077.0,0.0001251]
[1744119156096,0.012487,80082.0,80077.0,0.0001251]
[1744119156346,0.602243,80078.0,80077.0,0.0001251]
[1744119156599,0.61679385,80075.0,80074.0,6.9e-07]
[1744119156840,0.602328,80052.0,80051.0,6e-07]
[1744119157080,0.602328,80052.0,80051.0,9e-08]
[1744119157081,1.15492749,80052.0,80051.0,9e-08]
[1744119157565,0.61690185,80042.0,80014.0,0.1796]
[1744119157809,0.34,80042.0,80041.0,0.0128296]
[1744119158051,0.47875164,80042.0,80041.0,0.0003366]
[1744119158751,0.49329249,80042.0,80041.0,0.0003366]
[1744119158977,0.34,80042.0,80041.0,0.0003366]
[1744119159204,0.345,80042.0,80041.0,0.2627006]
[1744119159427,0.347,80042.0,80041.0,0.0128296]
[1744119159662,0.48575164,80042.0,80041.0,0.0003366]
[1744119160115,0.347,80042.0,80041.0,0.0003366]
[1744119160382,0.48075164,80042.0,80041.0,0.0003366]
[1744119160823,0.48475164,80042.0,80041.0,0.0003366]
[1744119161048,0.48575164,80042.0,80041.0,0.0003366]
[1744119161268,0.50029249,80042.0,80041.0,0.0003366]
[1744119161489,0.47125864,80042.0,80041.0,0.0003366]
[1744119161733,0.00041638,80052.0,80043.0,0.249865]
[1744119161950,0.00041638,80052.0,80041.0,0.0128296]
[1744119161951,0.021493,80042.0,80041.0,0.0003366]
[1744119162173,0.027493,80042.0,80041.0,0.0003366]
[1744119162393,0.027493,80042.0,80041.0,6e-07]
[1744119162394,0.96849249,80042.0,80041.0,6e-07]
[1744119162617,1.14225249,80042.0,80026.0,0.0003366]
[1744119162865,0.74320949,80027.0,80026.0,6e-07]
[1744119163307,0.602427,80022.0,80021.0,6e-07]
[1744119163545,1.14048564,80022.0,80021.0,6e-07]
[1744119163769,0.87805864,80022.0,80021.0,6e-07]
[1744119163990,0.34,80022.0,80021.0,0.0124966]
[1744119164238,0.012494,80036.0,80022.0,0.012496]
[1744119164470,0.012494,80037.0,80031.0,0.012495]
[1744119164693,0.009,80022.0,80021.0,0.0001258]
[1744119164923,0.009,80022.0,80021.0,0.14137963]
[1744119164924,0.017,80022.0,80021.0,0.14137963]
[1744119165148,0.008,80022.0,80021.0,0.16182851]
[1744119165372,0.012492,80050.0,80021.0,0.15183132]
[1744119165636,0.012492,80050.0,80040.0,0.249874]
[1744119165637,0.249846,80049.0,80040.0,0.249874]
[1744119165833,0.249846,80049.0,80022.0,0.54065864]
[1744119165834,0.012492,80045.0,80037.0,0.432682]
[1744119166046,0.24983,80055.0,80045.0,0.012492]
[1744119166252,0.24983,80055.0,80048.0,0.249849]
[1744119166253,0.262326,80053.0,80048.0,0.249849]
[1744119166490,0.77183048,80080.0,80054.0,0.012491]